Cogmind - Beta 14 @@@ ROGUE MODE // 2024.10.07 @ 11:16:39 Player: Syanka Result: Destroyed by Y-54 Guardian with Gatling Laser Performance ------------- Evolutions (3) 1500 Regions Visited (10) 2000 Robots Destroyed (130) 650 Value Destroyed (5165) 5165 Prototype IDs (28) 560 Alien Tech Used (0) 0 Bonus (1474) 1474 TOTAL SCORE: 11349 Bonus ------- High Alert Combat Kills 872 Follower Combat Kills 326 Entered Garrisons 400 Used RIF Installer 1000 Friendly Fire -1124 Cogmind --------- Core Integrity 0/700 Matter 236/300 Energy 192/290 System Corruption 11% Temperature Warning (393) Movement Treading (810) Ox8 Location -7/Factory Parts ------- > --- POWER (1) -------- Reinforced Deuterium Engine > --- PROPULSION (3) --- Armored Treads > --- UTILITY (7) ------ Cargo Storage Unit Trap Scanner Improved Transmission Jammer Relay Coupler [Swarmer] (37) Relay Coupler [Grunt] (31) Relay Coupler [Brawler] (10) > --- WEAPON (2) ------- Gatling Laser KE Penetrator > --- INVENTORY (30) --- Carbon-fiber Leg Compact Wheel Improved Cooling System Improved Cooling System YI-UF0's Bottomless Matter Pit (1500) Structural Scanner Advanced Visual Processing Unit Recoil Nullifier Improved Weapon Cycler Improved Weapon Cycler Hardened Heavy Armor Plating Hardened Heavy Armor Plating Improved Light Armor Plating Remote Force Field Remote Force Field Relay Coupler [Swarmer] (35) Relay Coupler [Grunt] (28) Relay Coupler [Specialist] (17) High-powered Tractor Beam EM Pulse Cannon Gauss Rifle Improved Grenade Launcher Heavy Rocket Launcher Remote Datajack Improved Plasma Cutter Heavy Mace Peak State ------------ > --- POWER ------------ Particle Reactor > --- PROPULSION ------- Medium Treads Improved Medium Treads Wheel > --- UTILITY ---------- Improved Cooling System Cargo Storage Unit Layered Light Armor Plating Relay Coupler [Swarmer] Relay Coupler [Grunt] Relay Coupler [Brawler] > --- WEAPON ----------- Quantum Rifle Quantum Rifle > --- INVENTORY -------- Reinforced Deuterium Engine Improved Cooling System YI-UF0's Bottomless Matter Pit Structural Scanner Trap Scanner Seismic Detector Improved Transmission Jammer Hardened Heavy Armor Plating Improved Light Armor Plating Improved Light Armor Plating Shield Generator Relay Coupler [Swarmer] Relay Coupler [Grunt] Relay Coupler [Specialist] Relay Coupler [Behemoth] Tractor Beam Precision Shock Rifle Gatling Laser Light EM Pulse Cannon Light EM Pulse Cannon Gauss Rifle Gauss Rifle KE Penetrator Heavy Shock Bomb Launcher Improved Grenade Launcher Remote Datajack Improved Plasma Cutter Heavy Mace [Rating: 64] Favorites ----------- Power Light Ion Engine Engine Light Ion Engine Power Core Neutrino Core Reactor Particle Reactor Propulsion Light Treads Treads Light Treads Leg Carbon-fiber Leg Wheel Wheel Utility Cargo Storage Unit Device Seismic Detector Storage Cargo Storage Unit Processor Target Analyzer Hackware Relay Coupler [Grunt] Protection Layered Light Armor Plating Weapon Assault Rifle Energy Gun Pulse Rifle Energy Cannon Heavy Phase Cannon Ballistic Gun Assault Rifle Ballistic Cannon Mass Driver Launcher Heavy Shock Bomb Launcher Special Weapon Mining Laser Impact Weapon Heavy Mace Slashing Weapon Makeshift Sword Piercing Weapon Makeshift Spear Build | -11 -10 -10 -10 -9 -8 -8 -8 -7 -7 -7 ------- Run | Yrd Mat Min Exi Min Mat Gar Mat Fac Gar Fac Slots Evolved 6 | . . . . . 4 . . 2 . . Power . | . . . . . . . . . . . Propulsion 1 | . . . . . . . . 1 . . Utility 5 | . . . . . 4 . . 1 . . Weapon . | . . . . . . . . . . . Parts Attached 275 | 9 9 4 5 10 45 39 23 47 55 29 Power 15 | 1 . . . 1 2 5 2 1 2 1 Engine 10 | 1 . . . . 2 3 1 1 1 1 Core 4 | . . . . 1 . 2 1 . . . Reactor 1 | . . . . . . . . . 1 . Propulsion 69 | 4 1 . 1 . 8 8 11 18 7 11 Treads 30 | 2 1 . 1 . 2 6 4 8 4 2 Leg 1 | . . . . . . . . . 1 . Wheel 38 | 2 . . . . 6 2 7 10 2 9 Hover . | . . . . . . . . . . . Flight . | . . . . . . . . . . . Utility 82 | 2 . 1 . 3 19 15 3 14 17 8 Device 50 | 1 . . . 1 13 10 . 11 6 8 Storage 4 | 1 . 1 . 1 1 . . . . . Processor 4 | . . . . 1 2 1 . . . . Hackware 8 | . . . . . . . 3 1 4 . Protection 16 | . . . . . 3 4 . 2 7 . Artifact . | . . . . . . . . . . . Weapon 109 | 2 8 3 4 6 16 11 7 14 29 9 Energy Gun 28 | . . . . . 9 4 . 3 9 3 Energy Cannon 9 | . . . . . 1 1 2 . 2 3 Ballistic Gun 19 | 2 3 1 1 2 2 1 . . 6 1 Ballistic Cannon 7 | . . . . . . 3 . 4 . . Launcher 12 | . 3 1 . 1 . 1 3 1 2 . Special Weapon 24 | . 2 1 1 2 1 . 2 6 8 1 Impact Weapon 5 | . . . . . 1 1 . . 2 1 Slashing Weapon 3 | . . . 1 . 2 . . . . . Piercing Weapon 2 | . . . 1 1 . . . . . . Special Melee Weapon . | . . . . . . . . . . . Unidentified Prototypes 3 | . . . . 1 1 . . 1 . . Corrupted Parts 1 | . . . . . . . . . . 1 System Corruption 7 | . . . . . . . . . . 7 Parts Lost 44 | . . . . . 4 11 . 5 15 9 Power 5 | . . . . . 1 2 . . 1 1 Propulsion 21 | . . . . . 1 3 . 3 8 6 Utility 10 | . . . . . 1 4 . 1 3 1 Weapon 8 | . . . . . 1 2 . 1 3 1 Highest Loss Streak 8 | . . . . . 1 8 . 2 7 3 To Critical Strikes . | . . . . . . . . . . . Average Slot Usage (%) 89 | . 100 100 95 99 80 85 86 90 84 83 Engine 8 | . 14 14 14 12 6 7 1 7 . 1 Reactor 1 | . . . . . . . . . 6 5 Treads 15 | . 28 28 28 28 2 15 5 6 10 1 Wheel 5 | . . . . . 15 2 12 15 5 14 Device 11 | . 14 14 14 12 11 9 9 13 10 13 Storage 10 | . 14 14 14 14 9 9 9 7 7 7 Processor 4 | . . . . . 7 15 5 . . . Hackware 6 | . . . . . . . 16 21 19 23 Protection 4 | . . . . . 8 8 5 2 7 . Energy Gun 4 | . . . . . 9 10 . 1 4 3 Energy Cannon 1 | . . . . . . . 8 4 2 3 Ballistic Gun 5 | . 22 18 2 24 3 . . . 1 3 Special Weapon 2 | . 5 9 4 3 . . 3 3 3 1 Impact Weapon 1 | . . . . . . 5 . . . 1 Slashing Weapon 1 | . . . 7 . 3 . . . . . Piercing Weapon 1 | . . . 10 . . . . . . . Peak Build Rating 64 | 7 7 8 15 18 35 55 55 57 64 50 Average Rating 30 | 6 7 7 12 11 27 39 45 50 50 45 On Entrance 23 | . 7 7 8 10 14 35 55 37 43 42 Naked Turns . | . . . . . . . . . . . Heaviest Build 182 | 13 14 48 48 50 172 182 182 177 181 172 Greatest Support 78 | 40 40 40 40 40 40 50 50 72 78 42 Greatest Overweight (x) 53 | . . 1 1 1 8 47 18 16 17 53 Average Overweight (x) 3 | . . . 1 1 7 4 7 5 6 6 Largest Inventory Capacity 30 | 8 8 20 20 20 30 30 30 30 30 30 Average Capacity 24 | 7 8 14 20 20 29 30 30 30 30 30 Most Carried 30 | 6 8 9 17 20 30 30 30 30 30 30 Average Carried 23 | 4 7 8 15 18 27 29 29 29 29 29 Final Capacity 30 | 8 8 20 20 20 30 30 30 30 30 30 Final Carried 30 | 6 8 9 17 20 30 30 30 30 30 28 Class Distribution -------------------- 36% | Mutant 32% | Bothacker-Mutant 29% | Hauler-Mutant Dominant Class ---------------- Mutant | -10/Materials Mutant | -10/Mines Mutant | -10/Exiles Mutant | -9/Mines Hauler-Mutant | -8/Materials Hauler-Mutant | -8/Garrison Bothacker-Mutant | -8/Materials Bothacker-Mutant | -7/Factory Bothacker-Mutant | -7/Garrison Bothacker-Mutant | -7/Factory Resources | -11 -10 -10 -10 -9 -8 -8 -8 -7 -7 -7 ----------- Run | Yrd Mat Min Exi Min Mat Gar Mat Fac Gar Fac Matter Collected 5707 | 332 208 17 106 819 1060 835 211 1206 635 278 Remotely . | . . . . . . . . . . . Salvage Created 6084 | 108 259 24 90 210 1133 1362 754 819 817 508 Parts 265 | 14 25 6 4 7 56 24 46 36 28 19 Haulers Intercepted . | . . . . . . . . . . . Recyclers Shooed 5 | . . . . . . . 1 4 . . Parts Field Recycled . | . . . . . . . . . . . Retrieved Matter . | . . . . . . . . . . . Parts Self-Destructed . | . . . . . . . . . . . Prevented . | . . . . . . . . . . . Kills | -11 -10 -10 -10 -9 -8 -8 -8 -7 -7 -7 ------- Run | Yrd Mat Min Exi Min Mat Gar Mat Fac Gar Fac Combat Hostiles Destroyed 89 | . 9 3 . 3 20 14 12 10 16 2 Melee 2 | . . . . . 2 . . . . . Guns 37 | . 4 . . . 16 8 . 1 7 1 Cannons 21 | . . . . . 2 1 8 8 2 . AOE 25 | . 5 3 . 3 . 5 4 1 4 . Classes Destroyed 15 | 2 3 . . 1 5 1 1 1 1 . Worker 7 | . . . . . . . 1 3 . 3 Builder 7 | . 1 . . . . . 4 1 . 1 Tunneler 5 | 3 . . . . 2 . . . . . Recycler 13 | 1 1 . . . . . 2 5 . 4 Operator 3 | . . . . . 2 . . 1 . . Watcher 4 | . 3 . . . 1 . . . . . Swarmer 22 | . 9 3 . . . . 4 . 6 . Grunt 37 | . . . . 3 10 10 5 5 4 . Brawler 4 | . . . . . 1 . 3 . . . Duelist 2 | . . . . . 1 . . . 1 . Sentry 16 | . . . . . 6 3 1 3 2 1 Specialist 1 | . . . . . . . . . 1 . Hunter 4 | . . . . . 2 . . 1 1 . Programmer 2 | . . . . . . . . 1 . 1 Behemoth 2 | . . . . . . 1 . . 1 . Best Kill Streak 9 | 2 4 3 . 3 4 9 5 5 6 2 Combat Bots Only 9 | . 3 3 . 3 4 9 3 4 6 1 Max Kills in Single Turn 3 | 1 3 3 . 2 1 3 3 2 1 1 Gunslinging . | . . . . . . . . . . . Exploded 3 | . 3 3 . 2 . 3 2 1 1 . Melee 1 | . . . . . 1 . . . . . Uniques/NPCs Destroyed 1 | . . . . 1 . . . . . . YI-UF0 (-9/Mines) Combat | -11 -10 -10 -10 -9 -8 -8 -8 -7 -7 -7 -------- Run | Yrd Mat Min Exi Min Mat Gar Mat Fac Gar Fac Hostile Shots Fired 885 | . 21 3 . 5 92 116 51 225 240 132 Missed 314 | . 4 1 . 1 20 36 19 85 91 57 Damage Taken 7634 | . 196 14 . 53 1148 1329 584 1270 2212 828 Core 1230 | . 59 . . 25 71 238 133 255 266 183 Absorbed by Shields 69 | . . . . . . . . 69 . . Ignored by Resistances 158 | . . . . . . . 36 36 86 . Regen/Repaired (Parts) 174 | . . . . . . . . 174 . . Core Remaining (%) 61 | 100 . . . 66 . . 19 . . . Volleys Fired 467 | 7 26 1 22 11 71 115 57 62 74 21 Largest 2 | 2 2 1 1 2 2 2 2 2 2 2 Hottest 188 | 40 100 33 100 100 124 126 147 147 188 126 Shots Fired 737 | 14 43 1 23 18 132 190 59 103 115 39 Gun 480 | 14 34 . 6 14 122 182 . 15 71 22 Cannon 184 | . . . . . 10 5 43 80 29 17 Launcher 22 | . 5 1 . 2 . 3 6 . 5 . Special 51 | . 4 . 17 2 . . 10 8 10 . Kinetic 158 | 14 34 . 6 14 18 5 2 46 8 11 Thermal 469 | . 4 . 17 2 114 182 41 34 64 11 Explosive 13 | . 5 1 . 2 . 3 2 . . . Electromagnetic 70 | . . . . . . . 4 15 34 17 Robot Hit Streak 38 | 4 11 . . 11 20 38 5 8 23 9 Robot Miss Streak 5 | 2 3 1 . 1 5 3 2 3 3 5 Penetration Max . | . . . . . . . . . . . Secondary Targets 5 | . . . . . 3 2 . . . . Max Gunslinging Chain 1 | . . . . . 1 1 . . . . Shots Hit Robots 528 | 7 23 . 4 15 101 164 34 67 87 26 Core Hits 257 | 5 21 3 2 9 47 70 24 24 32 20 Critical Kills . | . . . . . . . . . . . Critical Parts Destroyed . | . . . . . . . . . . . Critical Strikes 34 | . . . . . 14 16 . 2 2 . Burn 30 | . . . . . 12 16 . . 2 . Blast 1 | . . . . . . . . 1 . . Corrupt 1 | . . . . . . . . 1 . . Sever 2 | . . . . . 2 . . . . . Melee Attacks 64 | . . . 33 2 15 7 . . 5 2 Impact 15 | . . . . . 1 7 . . 5 2 Slashing 24 | . . . 10 . 14 . . . . . Piercing 25 | . . . 23 2 . . . . . . Sneak Attacks 1 | . . . . . 1 . . . . . Combat Hostiles . | . . . . . . . . . . . Follow-up Attacks 2 | . . . . . 2 . . . . . Damage Inflicted 13261 | 88 648 169 222 339 1941 3550 1453 1938 2214 699 Guns 6964 | 88 274 . . 159 1466 2950 . 269 1429 329 Cannons 3476 | . . . . . 135 25 963 1669 447 237 Explosions 2098 | . 369 169 . 180 . 437 490 . 320 133 Melee 700 | . . . 222 . 340 138 . . . . Ramming 5 | . 5 . . . . . . . . . Kinetic 1751 | 88 274 . . 159 156 25 34 808 85 122 Thermal 7941 | . . . . . 1445 2950 943 861 1505 237 Explosive 1363 | . 369 169 . 180 . 437 208 . . . Electromagnetic 1501 | . . . . . . . 268 269 624 340 Impact 138 | . . . . . . 138 . . . . Slashing 340 | . . . . . 340 . . . . . Piercing 222 | . . . 222 . . . . . . . Highest Corruption 11 | . 2 2 2 2 . . . 1 2 11 Average Corruption 2 | . 2 2 2 2 . . . 1 1 3 Corruption Purged . | . . . . . . . . . . . Corruption Blocked . | . . . . . . . . . . . Effects 103 | . 3 9 31 18 . . . 2 24 16 Message Errors 26 | . 1 3 8 4 . . . 1 5 4 Matter Fused 27 | . 1 . 10 4 . . . 1 7 4 Heat Flow Errors 10 | . . . 5 2 . . . . 2 1 Energy Discharges 17 | . 1 4 2 5 . . . . 4 1 Parts Rejected 2 | . . . . . . . . . . 2 Parts Fused 1 | . . . 1 . . . . . . . Data Loss (minor) 8 | . . 1 2 3 . . . . 2 . Data Loss (major) 4 | . . . 2 . . . . . 1 1 Misfires 7 | . . . 1 . . . . . 3 3 Alerts 1 | . . 1 . . . . . . . . Overload Shots . | . . . . . . . . . . . Overflow Damage 343 | . . . . . 41 . 43 95 29 135 Projectiles 113 | . . . . . . . 18 95 . . Explosions 189 | . . . . . . . 25 . 29 135 Melee 41 | . . . . . 41 . . . . . Knockbacks 6 | . . . . . . 1 1 4 . . Impact 1 | . . . . . . 1 . . . . Kinetic 5 | . . . . . . . 1 4 . . Secondary . | . . . . . . . . . . . Self-Inflicted Damage 528 | . 63 . . . . 56 38 . 142 229 Shots 17 | . 3 . . . . 2 2 . 5 5 Rammed 2 | . 1 . . . . . 1 . . . Targets Rammed 2 | . 1 . . . . . 1 . . . Kicked . | . . . . . . . . . . . Crushed . | . . . . . . . . . . . Highest Temperature 387 | . 60 . 226 145 258 23 39 286 246 387 Average Temperature 63 | . 25 . 71 44 54 9 15 69 74 91 Received Heat Transfer 1954 | . . . . 30 432 495 234 328 345 90 Effects 4 | . . . . . 3 . . . . 1 Interference 3 | . . . . . 3 . . . . . Short Circuit 1 | . . . . . . . . . . 1 Siege Activations . | . . . . . . . . . . . Robots Corrupted 3 | . . . . . . . . . 2 1 Combat Hostiles 3 | . . . . . . . . . 2 1 Parts Fried 7 | . . . . . . . 1 1 3 2 Impact Corruptions . | . . . . . . . . . . . Robots Melted 3 | . . . . . . 2 . . 1 . Combat Hostiles 1 | . . . . . . . . . 1 . Parts Melted 29 | . . . . . 14 8 1 1 3 2 Heat Transferred 15836 | . . . . . 3885 7099 1049 925 2403 475 Parts Sabotaged . | . . . . . . . . . . . Parts Stolen . | . . . . . . . . . . . Parts Stripped . | . . . . . . . . . . . Power Chain Reactions 5 | . . . . . . . 2 . 2 1 Alert | -11 -10 -10 -10 -9 -8 -8 -8 -7 -7 -7 ------- Run | Yrd Mat Min Exi Min Mat Gar Mat Fac Gar Fac Peak Influence 2143 | 20 176 80 . 97 355 2143 1346 768 1044 604 Initial 1044 | . 13 . . . . 230 1044 611 396 548 Average 541 | 14 69 23 . 36 119 1010 1198 592 708 501 Maximum Alert Level 5 | . . . . . 1 5 4 3 3 2 Low Security (%) 37 | 100 100 100 . 100 86 . . . . . Level 1 6 | . . . . . 13 12 . 1 3 9 Level 2 25 | . . . . . . 24 . 87 41 90 Level 3 16 | . . . . . . 24 24 10 55 . Level 4 8 | . . . . . . 16 75 . . . Level 5 5 | . . . . . . 22 . . . . High Security . | . . . . . . . . . . . Max Security . | . . . . . . . . . . . Squads Dispatched 14 | . . . . . 4 . 3 6 . 1 Investigation . | . . . . . . . . . . . Extermination 3 | . . . . . . . . 2 . 1 Reinforcement 3 | . . . . . 1 . 1 1 . . Assault 2 | . . . . . . . 2 . . . Garrison 6 | . . . . . 3 . . 3 . . Intercept . | . . . . . . . . . . . Searches Triggered . | . . . . . . . . . . . Construction Impeded 1 | . . . . . . . 1 . . . Haulers Reinforced . | . . . . . . . . . . . Active Scanning Responses . | . . . . . . . . . . . Cargo Convoy Interrupts . | . . . . . . . . . . . Stealth | -11 -10 -10 -10 -9 -8 -8 -8 -7 -7 -7 --------- Run | Yrd Mat Min Exi Min Mat Gar Mat Fac Gar Fac Distress Signals 8 | . 1 . . . . 1 3 2 . 1 Communications Jammed 2 | . . . . . . . . 1 . 1 Distress Signals 1 | . . . . . . . . 1 . . Times Spotted 159 | . 12 3 . 6 34 24 30 22 21 7 Peak Tracking Total 10 | . 5 3 . 3 4 9 10 4 5 3 Tactical Retreats 12 | . 1 . . . 1 2 4 1 2 1 Traps | -11 -10 -10 -10 -9 -8 -8 -8 -7 -7 -7 ------- Run | Yrd Mat Min Exi Min Mat Gar Mat Fac Gar Fac Traps Triggered 8 | . 1 . . . . 3 . . 3 1 Indirectly . | . . . . . . . . . . . Trap Hack Attempts . | . . . . . . . . . . . Triggered . | . . . . . . . . . . . Disarmed . | . . . . . . . . . . . Reprogrammed . | . . . . . . . . . . . Reused . | . . . . . . . . . . . Traps Extracted . | . . . . . . . . . . . Installed . | . . . . . . . . . . . Triggered . | . . . . . . . . . . . Machines | -11 -10 -10 -10 -9 -8 -8 -8 -7 -7 -7 ---------- Run | Yrd Mat Min Exi Min Mat Gar Mat Fac Gar Fac Machines Disabled 19 | . . . 1 1 1 5 1 . 2 8 Max in Single Turn 3 | . . . 1 1 1 2 1 . 1 3 Garrison Relay 4 | . . . . . . 3 . . 1 . Phase Generator 2 | . . . . . . 1 . . 1 . Machines Repaired . | . . . . . . . . . . . Machines Dismantled 2 | . . . . . . . . . 2 . Machines Sabotaged . | . . . . . . . . . . . Overloaded Fab Kills . | . . . . . . . . . . . Hacking | -11 -10 -10 -10 -9 -8 -8 -8 -7 -7 -7 --------- Run | Yrd Mat Min Exi Min Mat Gar Mat Fac Gar Fac Machines Accessed 25 | . 8 . 2 . 8 2 . 3 . 2 Terminals 20 | . 8 . . . 7 2 . 1 . 2 Fabricators . | . . . . . . . . . . . Repair Stations 1 | . . . . . . . . 1 . . Recycling Units . | . . . . . . . . . . . Scanalyzers . | . . . . . . . . . . . Garrison Access 2 | . . . . . 1 . . 1 . . Total Hacks 55 | . 20 . 2 . 20 3 . 6 . 4 Successful 30 | . 10 . 2 . 10 2 . 4 . 2 Failed 25 | . 10 . . . 10 1 . 2 . 2 Catastrophic 6 | . 2 . . . 2 . . 1 . 1 Database Lockouts . | . . . . . . . . . . . Manual 38 | . 17 . 1 . 13 . . 3 . 4 Terminals 49 | . 20 . . . 19 3 . 3 . 4 Fabricators . | . . . . . . . . . . . Repair Stations 2 | . . . . . . . . 2 . . Recycling Units . | . . . . . . . . . . . Scanalyzers . | . . . . . . . . . . . Garrison Access 2 | . . . . . 1 . . 1 . . Terminal Hacks 12 | . 3 . 2 . 3 2 . 1 . 1 Record 1 | . . . 1 . . . . . . . Robot Schematic 1 | . 1 . . . . . . . . . Prototype ID Bank 1 | . 1 . . . . . . . . . Branch Access Points 2 | . . . . . 1 . . . . 1 Emergency Access Points 1 | . . . . . . 1 . . . . Unreport Threat 1 | . . . . . . . . 1 . . Locate Traps 2 | . . . . . 2 . . . . . Zone Layout 1 | . 1 . . . . . . . . . Garrison Registry 1 | . . . . . . 1 . . . . Derelict Proto ID Bank 1 | . . . 1 . . . . . . . Fabricator Hacks . | . . . . . . . . . . . Repair Station Hacks 2 | . . . . . . . . 2 . . Scan Component 1 | . . . . . . . . 1 . . Repair 1 | . . . . . . . . 1 . . Recycling Unit Hacks . | . . . . . . . . . . . Scanalyzer . | . . . . . . . . . . . Garrison Access Hacks 2 | . . . . . 1 . . 1 . . Unlock Access 2 | . . . . . 1 . . 1 . . Unauthorized Hacks 14 | . 7 . . . 6 . . . . 1 Terminals 14 | . 7 . . . 6 . . . . 1 Botnet 2 | . 1 . . . . . . . . 1 Operators 2 | . 1 . . . 1 . . . . . Skim 10 | . 5 . . . 5 . . . . . Fabricators . | . . . . . . . . . . . Repair Stations . | . . . . . . . . . . . Recycling Units . | . . . . . . . . . . . Scanalyzers . | . . . . . . . . . . . Garrison Access . | . . . . . . . . . . . Data Cores Recovered 1 | . . . . . 1 . . . . . Used . | . . . . . . . . . . . Hacking Detections 20 | . 7 . . . 6 2 . 3 . 2 Full Trace Events . | . . . . . . . . . . . Feedback Events . | . . . . . . . . . . . Feedback Blocked . | . . . . . . . . . . . Robot Schematics Acquired 1 | . 1 . . . . . . . . . Robots Built . | . . . . . . . . . . . Authchips . | . . . . . . . . . . . Time . | . . . . . . . . . . . Total Robot Build Rating . | . . . . . . . . . . . Part Schematics Acquired . | . . . . . . . . . . . Parts Built . | . . . . . . . . . . . Authchips . | . . . . . . . . . . . Time . | . . . . . . . . . . . Total Part Build Rating . | . . . . . . . . . . . Parts Repaired 1 | . . . . . . . . 1 . . Time 25 | . . . . . . . . 25 . . Parts Recycled . | . . . . . . . . . . . Recycled Matter . | . . . . . . . . . . . Retrieved Matter . | . . . . . . . . . . . Retrieved Components . | . . . . . . . . . . . Parts Scanalyzed . | . . . . . . . . . . . Part Schematics Acquired . | . . . . . . . . . . . Parts Damaged . | . . . . . . . . . . . Bothacking | -11 -10 -10 -10 -9 -8 -8 -8 -7 -7 -7 ------------ Run | Yrd Mat Min Exi Min Mat Gar Mat Fac Gar Fac Used RIF Installer 2 | . . . . . . 1 . . 1 . Hotswap 1 | . . . . . . . . . 1 . Robots Hacked 13 | . . . . . . . 5 5 3 . Non-combat 4 | . . . . . . . 3 1 . . Combat 9 | . . . . . . . 2 4 3 . Robot Hacks Applied 15 | . . . . . . . 5 5 5 . parse_system 2 | . . . . . . . 2 . . . find_chute 1 | . . . . . . . . 1 . . map_route 1 | . . . . . . . 1 . . . overload_power 4 | . . . . . . . 1 2 1 . disable_weapons 2 | . . . . . . . 1 . 1 . reboot_system 2 | . . . . . . . . . 2 . formatsys_high 3 | . . . . . . . . 2 1 . Relay Couplers Released 17 | . . . . . . 14 . . 3 . Machine Destruction 17 | . . . . . . 14 . . 3 . Attached 8 | . . . . . . . 3 1 4 . Fabnet Peak Effective % . | . . . . . . . . . . . Robots Rewired 8 | . . . 1 . . 7 . . . . Allies Hacked . | . . . . . . . . . . . Hacks Repelled . | . . . . . . . . . . . Allies | -11 -10 -10 -10 -9 -8 -8 -8 -7 -7 -7 -------- Run | Yrd Mat Min Exi Min Mat Gar Mat Fac Gar Fac Total Allies 16 | . . . 1 3 . 9 . 2 1 . Largest Group 7 | . . . 1 3 2 7 1 1 1 . Highest-Rated Group 116 | . . . 8 40 24 116 10 32 32 . Highest-Rated Ally 32 | . . . 8 16 16 25 10 32 32 . Total Orders 2 | . . . 2 . . . . . . . STAY 1 | . . . 1 . . . . . . . FOLLOW 1 | . . . 1 . . . . . . . Ally Attacks 70 | . . . . 17 8 36 . 4 5 . Total Damage 1272 | . . . . 168 77 819 . 125 83 . Kills 13 | . . . . 2 . 9 . 2 . . Allies Corrupted . | . . . . . . . . . . . Allies Melted . | . . . . . . . . . . . Intel | -11 -10 -10 -10 -9 -8 -8 -8 -7 -7 -7 ------- Run | Yrd Mat Min Exi Min Mat Gar Mat Fac Gar Fac Robot Analysis Total . | . . . . . . . . . . . Derelict Logs Recovered 3 | . . 1 . 2 . . . . . . Drone Launches . | . . . . . . . . . . . Drone Recoveries . | . . . . . . . . . . . Exploration | -11 -10 -10 -10 -9 -8 -8 -8 -7 -7 -7 ------------- Run | Yrd Mat Min Exi Min Mat Gar Mat Fac Gar Fac Turns Passed 16391 | 266 1310 755 2222 1228 1950 3695 719 1120 2169 957 Spaces Moved 5318 | 75 611 381 858 467 676 682 231 447 511 379 Core 7 | 2 . . . . . 3 . . . 2 Treads 3330 | 66 611 381 858 467 77 604 28 31 207 . Legs 74 | . . . . . . . . . 58 16 Wheels 1907 | 7 . . . . 599 75 203 416 246 361 Hover . | . . . . . . . . . . . Flight . | . . . . . . . . . . . Fastest Speed 50 | 50 160 160 240 240 140 190 200 146 146 138 Average Speed 250 | 149 160 195 240 240 203 449 228 179 335 214 Slowest Speed 2700 | 160 160 240 240 240 485 2400 560 320 890 2700 Overloaded Moves . | . . . . . . . . . . . Propulsion Burnouts . | . . . . . . . . . . . Robots Hopped . | . . . . . . . . . . . Cave-ins Triggered . | . . . . . . . . . . . Exploration Rate (%) 54 | 5 98 83 94 98 56 72 28 13 46 7 Regions Visited 10 Branch Regions 3 Pre-discovered Areas 6 | . 2 1 1 . 2 . . . . . Known Exits Taken 5 | . 1 . . 1 1 . 1 1 . . Unknown Exits Taken 3 | 1 . 1 1 . . . . . . . Scrap Searched 2 | . . . . 2 . . . . . . Spaces Dug 52 | . 6 . 7 2 2 . 21 4 9 1 Terrain Destroyed 311 | . 29 14 47 26 2 79 34 31 13 36 Melee 15 | . . . 6 2 2 . . . 4 1 Projectile 63 | . 4 . 7 2 . 2 14 31 . 3 AOE 233 | . 25 14 34 22 . 77 20 . 9 32 Terrain Rammed . | . . . . . . . . . . . Walls Destroyed . | . . . . . . . . . . . Machines Disabled . | . . . . . . . . . . . Actions | -11 -10 -10 -10 -9 -8 -8 -8 -7 -7 -7 --------- Run | Yrd Mat Min Exi Min Mat Gar Mat Fac Gar Fac Total 7526 | 210 891 393 932 551 1106 1114 366 660 827 476 Wait 1059 | 114 231 4 3 46 234 180 40 54 127 26 Move 5309 | 74 610 380 857 466 676 681 230 446 510 379 Hop . | . . . . . . . . . . . Pick Up 139 | 6 7 2 7 8 31 25 5 26 15 7 Fast Attach 57 | 7 . . 1 1 8 12 4 5 9 10 Attach 49 | . . . 1 1 12 9 1 7 12 6 Detach 24 | . . . 2 2 10 1 1 . 6 2 Swap 170 | 2 9 4 3 8 25 19 18 35 34 13 Drop 123 | . 7 2 . 6 26 28 9 25 10 10 Fire 467 | 7 26 1 22 11 71 115 57 62 74 21 Melee 62 | . . . 33 2 13 7 . . 5 2 Ram 1 | . . . . . . . 1 . . . Kick . | . . . . . . . . . . . Crush 1 | . 1 . . . . . . . . . Escape Stasis 18 | . . . . . . 6 . . 12 . Rewire 35 | . . . 3 . . 31 . . 1 . Trap . | . . . . . . . . . . . Miscellaneous 12 | . . . . . . . . . 12 . Route ------- -11/Scrapyard -10/Materials (discovered 6 exits: *Mat x3 / *Min x2 / [*Sub]) -10/Mines (discovered 3 exits: *Mat x2 / *Exi) -10/Exiles -9/Mines (discovered 2 exits: *Mat x2) -8/Materials (discovered 4 exits: *Fac x3 / Gar) -8/Garrison (discovered 3 exits: [*Mat x3]) -8/Materials (discovered 2 exits: *Fac x2) -7/Factory (discovered 6 exits: Fac x2 / *Sto / Low x2 / Gar) -7/Garrison -7/Factory (discovered 4 exits: Sto x2 / Low x2) History --------- Turn | Location | Event 30 | -11/Scrapyard | Discovered new exit (range 15) 267 | -11/Scrapyard | Entered Materials 306 | -10/Materials | Build established: Mutant 353 | -10/Materials | Discovered new exit (range 14) 615 | -10/Materials | Discovered new exit (range 13) 782 | -10/Materials | Discovered new exit (range 14) 1002 | -10/Materials | Discovered new exit (range 16) 1231 | -10/Materials | Discovered new exit (range 9) 1319 | -10/Materials | Identified exit to Mines 1358 | -10/Materials | Learned location of 1 exit from Storage 1372 | -10/Materials | Discovered new exit (range 11) 1403 | -10/Materials | Learned location of Storage (-7) 1412 | -10/Materials | Learned 4 Recycling zone layouts 1577 | -10/Materials | Entered Mines 1578 | -10/Mines | Identified exit to Materials 1584 | -10/Mines | Received a Rocket Launcher from a helpful Derelict 1987 | -10/Mines | Learned Materials interactive machine intel 2007 | -10/Mines | Deemed a non-threat by the Exiles lab entrance 2007 | -10/Mines | Discovered new exit (range 5) 2160 | -10/Mines | A weapon hastily lodged in a ceiling crevice suddenly fell to the ground 2332 | -10/Mines | Entered Exiles 2332 | -10/Exiles | Found Exiles lab destroyed 3162 | -10/Exiles | Learned location of Zion (-7) 3294 | -10/Exiles | Opened EX-Vault 4530 | -10/Exiles | Discovered new exit (range 10) 4554 | -10/Exiles | Entered Mines 4554 | -9/Mines | Accompanied by 1 ally 4555 | -9/Mines | Identified exit to Materials 4563 | -9/Mines | Met a Derelict bent on vengeance 4716 | -9/Mines | Assisted by bots powering up and referring to "LRC-V3" 4888 | -9/Mines | YI-UF0 nonchalantly dropped a Grenade Launcher on the ground 4902 | -9/Mines | Murdered YI-UF0 4908 | -9/Mines | Found Prototype Storage 4908 | -9/Mines | Identified YI-UF0's Bottomless Matter Pit 4960 | -9/Mines | Learned Materials emergency access door positions 4973 | -9/Mines | Discovered exit to Materials (range 15) 5782 | -9/Mines | Entered Materials 5782 | -8/Materials | Accompanied by 2 allies 5782 | -8/Materials | Evolved 4 slots: Utility x4 5783 | -8/Materials | Identified exit to Factory 5785 | -8/Materials | Loaded intel: 19 interactive machine locations 6265 | -8/Materials | Build established: Hauler-Gladiator 6575 | -8/Materials | Build established: Hauler-Mutant 6968 | -8/Materials | Learned 2 Lower Caves zone layouts 7145 | -8/Materials | Learned location of 3 exits from Factory 7186 | -8/Materials | Learned Factory emergency access door positions 7219 | -8/Materials | Learned 2 Storage zone layouts 7313 | -8/Materials | Learned Storage emergency access door positions 7497 | -8/Materials | Garrison activated, responded to threat 7732 | -8/Materials | Identified exit to Garrison 7732 | -8/Materials | Entered Garrison 8256 | -8/Garrison | Destroyed 9 combat bots 8266 | -8/Garrison | Lost 8 parts (1p2n3u2w) 8535 | -8/Garrison | Core integrity fell below 50% 8559 | -8/Garrison | Lost 3 parts (1p1n1u) 8954 | -8/Garrison | Triggered checkpoint 9017 | -8/Garrison | Garrison Relay disabled 9070 | -8/Garrison | Rescued a captive Derelict 9072 | -8/Garrison | Rescued a captive Derelict 9541 | -8/Garrison | Phase Generator disabled 9728 | -8/Garrison | Triggered checkpoint 9754 | -8/Garrison | Triggered checkpoint 9792 | -8/Garrison | Triggered checkpoint 9990 | -8/Garrison | Garrison Relay disabled 10036 | -8/Garrison | Triggered checkpoint 10090 | -8/Garrison | Discovered new exit (range 12) 10582 | -8/Garrison | Triggered checkpoint 10700 | -8/Garrison | Triggered checkpoint 10845 | -8/Garrison | Discovered new exit (range 18) 10845 | -8/Garrison | Discovered new exit (range 80) 10845 | -8/Garrison | Discovered new exit (range 43) 10885 | -8/Garrison | Garrison Relay disabled 11053 | -8/Garrison | Installed Relay Interface Framework 11116 | -8/Garrison | Spotted B-75 Beast 11153 | -8/Garrison | Destroyed B-75 Beast 11183 | -8/Garrison | Lost 5 allies 11357 | -8/Garrison | Build established: Bothacker-Mutant 11427 | -8/Garrison | Entered Materials 11427 | -8/Materials | Accompanied by 1 ally 11827 | -8/Materials | First assault squad dispatched 12096 | -8/Materials | Core integrity fell below 20% 12146 | -8/Materials | Entered Factory 12146 | -7/Factory | Evolved 2 slots: Propulsion x1, Utility x1 12147 | -7/Factory | Identified exit to Lower Caves 12148 | -7/Factory | Identified exit to Factory 12254 | -7/Factory | Discovered new exit (range 8) 12605 | -7/Factory | Repaired Imp. Medium Treads 12689 | -7/Factory | Identified exit to Garrison 13266 | -7/Factory | Entered Garrison 13266 | -7/Garrison | Accompanied by 1 ally 13419 | -7/Garrison | Lost 7 parts (1p3n3u) 13467 | -7/Garrison | Expanded RIF knowledge: Hotswap 13669 | -7/Garrison | Garrison Relay disabled 13829 | -7/Garrison | Core integrity fell below 50% 13844 | -7/Garrison | Triggered checkpoint 14230 | -7/Garrison | Phase Generator disabled 14257 | -7/Garrison | Spotted B-75 Beast 14440 | -7/Garrison | Discovered new exit (range 10) 14663 | -7/Garrison | Destroyed B-75 Beast 14694 | -7/Garrison | Lost 3 parts (2n1w) 15435 | -7/Garrison | Entered Factory 15909 | -7/Factory | Identified exit to Storage 16170 | -7/Factory | Core integrity fell below 20% 16200 | -7/Factory | Lost 3 parts (1p1n1w) 16274 | -7/Factory | System corruption reached 10% 16392 | -7/Factory | Destroyed by Y-54 Guardian with Gatling Laser Last Messages --------------- 16363_ R-06 Scavenger collects Sml. Matter Pod. 16366_ Slug penetrates P-60 Hacker. 16369_ System corrupted: Energy discharge (-54). 16369_ Slug penetrates Wall. 16372_ Wheel destroyed. 16372_ P-60 Hacker signal jammed. 16372_ Slug penetrates Wall. 16376_ Wheel destroyed. 16376_ Shock Rifle melted. 16376_ Imp. Heat Sink melted. 16376_ P-60 Hacker destroyed. 16376_ Slug penetrates Wall. 16377_ K-01 Serf destroyed. 16383_ Slug penetrates Y-54 Guardian. 16384_ System corrupted: Matter fused (-5). 16385_ Com. Wheel destroyed. 16386_ Slug penetrates Wall. 16386_ U-05 Engineer lays Concrete. 16392_ Imp. Transmission Jammer broken. 16392_ Overheating: Short circuit. Map ----- +----------------------------------------------------+ | ????# " ""T"" # ##########+#############/## | | ????# " "" "" # | | ????# " # | | ????# " ! ! " | | ????# " # | | ????# " ]]! # | | ????# " !! # ###+###### # ### | | ????# " [!! # ! #?? | | ????# [ = # !% # #?? | | ????# # % # #?? | | ?#####+########### * + # #?? | | # % # #?? | | ?################# % # # #?? | | ?????????????????# ######## # #?? | | ???############### #????# # #?? | | ???# #????## ! # #?? | | ???# * #?????## # #?? | | ???# !#?????## ! ! # #?? | | ???# u #??????# ! ! # #?? | | ???# #??????##### #### #?? | | ???# ######### #???????????######??? ?? | | ???# ####????# ;############;###???? ?? | | ???##### ##### *% Y ?? ??? | | ????# + = % #???????????? | | ????# [# = #???????????? | | ????# # @ #???????????? | | ????# " [ # #???????????? | | ????# " ## ############+###???????????? | | ????# "" ## #??????????????????????????? | | ????# ] ## #??????????????????????????? | | ????# ] ## ??????????????????????????? | | ????# ] ## ##?????????????????????????? | | ????# #### #??????????????????????????? | | ????# #??# #??????????????????????????? | | ????# ![ #??# #??????????????????????????? | | ????##%###########??# #??????????????????????????? | | ?????##???????????????#??????????????????????????? | | ?????????????????????????????????????????????????? | | ?????????????????????????????????????????????????? | | ?????????????????????????????????????????????????? | | ?????????????????????????????????????????????????? | | ?????????????????????????????????????????????????? | | ?????????????????????????????????????????????????? | | ?????????????????????????????????????????????????? | | ?????????????????????????????????????????????????? | | ?????????????????????????????????????????????????? | | ?????????????????????????????????????????????????? | | ?????????????????????????????????????????????????? | | ?????????????????????????????????????????????????? | | ?????????????????????????????????????????????????? | +----------------------------------------------------+ Best States ------------- Heat Dissipation 61 Energy Generation 23 Energy Capacity 340 Matter Stores 300 Matter Capacity 1800 Sight Range 16 Robot Scan Range 15 Terrain Scan Density 10 Jamming Range 14 Base Temperature (-) 100 Armor Coverage 600 Resistance: KI 20 Resistance: TH 15 Evasion (%) 44 Melee Accuracy 5 Target Analysis 5 Armor Integrity Analysis 30 Recoil Reduction 3 Kinecelleration 30 Salvage Targeting 1 Relay Coupler Types 4 Relay Coupler Value 91 Item Schematics ----------------- None Robot Schematics ------------------ M-13 Machinist | -10/Materials | Hacked Fabricated ------------ Nothing Alien Tech Used ----------------- None Achievements -------------- Factory Defaults Challenges ------------ None Game ------ Seed SlugGunTrap Manual? 0 Play Time 01:49:02 Cumulative 164.3 hours Start 2024.10.06 @ 22:31:14 End 2024.10.07 @ 11:16:39 Sessions 3 Manual Loads 0 Difficulty Rogue Special Mode None Game No. 95 Rogue 82 Adventurer 13 Explorer 0 Win Type - Total 3 Types 3/0/0/0/0/0/0/0/0 Lore% 51 Gallery% 67 Achievement% 55 Wizard Run 0 Options --------- Layout 2 ASCII 0 Keyboard 1 Movement Numpad Keybinds 0 Fullscreen 2 Font 16/Swanston Map View 55x47 Zoom Use 0% Tactical HUD 1 Map Filters NONE Filters NONE Steam 0 RUN: d4b8bdeb-ffe2-4179-af50-c11727ec3725